[Event "*** SCC Grand Prix: Titled Tuesday Blitz"]
[Site "Chess.com"]
[Date "2020.06.02"]
[Round "6"]
[White "Xeniya2005"]
[Black "Sweafty"]
[Result "0-1"]
[WhiteElo "2300"]
[BlackElo "2509"]
[TimeControl "180+1"]
[EndTime "11:09:10 PDT"]
[Termination "Sweafty won by resignation"]

1. e4 {[%clk 0:03:00.9]} 1... d6 {[%clk 0:02:59]} 2. d4 {[%clk 0:03:00.7]} 2...
Nf6 {[%clk 0:02:58.6]} 3. Nc3 {[%clk 0:03:00.7]} 3... g6 {[%clk 0:02:59.2]} 4.
Be3 {[%clk 0:02:59.1]} 4... c6 {[%clk 0:02:57]} 5. a4 {[%clk 0:02:58.1]} 5...
Qa5 {[%clk 0:02:52.9]} 6. f3 {[%clk 0:02:57.1]} 6... Nbd7 {[%clk 0:02:50.9]} 7.
Qd2 {[%clk 0:02:55.7]} 7... b5 {[%clk 0:02:49.9]} 8. Bd3 {[%clk 0:02:50.2]} 8...
Bg7 {[%clk 0:02:44.3]} 9. Nge2 {[%clk 0:02:49.1]} 9... O-O {[%clk 0:02:44.2]}
10. O-O {[%clk 0:02:48.7]} 10... b4 {[%clk 0:02:44.6]} 11. Nd1 {[%clk
0:02:45.3]} 11... c5 {[%clk 0:02:42.3]} 12. c3 {[%clk 0:02:35.6]} 12... Rb8
{[%clk 0:02:10.5]} 13. Qc2 {[%clk 0:02:03.4]} 13... Ba6 {[%clk 0:02:03]} 14.
Bxa6 {[%clk 0:01:50.5]} 14... Qxa6 {[%clk 0:02:02.5]} 15. Nf2 {[%clk 0:01:45.6]}
15... cxd4 {[%clk 0:01:53.2]} 16. cxd4 {[%clk 0:01:42.2]} 16... b3 {[%clk
0:01:50.5]} 17. Qd2 {[%clk 0:01:40.6]} 17... Nb6 {[%clk 0:01:50.6]} 18. Rfc1
{[%clk 0:01:21.7]} 18... Rfc8 {[%clk 0:01:47.6]} 19. Nc3 {[%clk 0:01:02.2]}
19... e6 {[%clk 0:01:38]} 20. g3 {[%clk 0:00:46.8]} 20... d5 {[%clk 0:01:35.4]}
21. e5 {[%clk 0:00:40.4]} 21... Nfd7 {[%clk 0:01:31.7]} 22. Nb5 {[%clk
0:00:32.2]} 22... Rxc1+ {[%clk 0:01:28.5]} 23. Qxc1 {[%clk 0:00:30.6]} 23... Rc8
{[%clk 0:01:27.9]} 24. Qe1 {[%clk 0:00:29.6]} 24... Nc4 {[%clk 0:01:27.8]} 25.
Bc1 {[%clk 0:00:27.3]} 25... Rb8 {[%clk 0:01:21.4]} 26. Nc3 {[%clk 0:00:24.2]}
26... Bf8 {[%clk 0:01:20.2]} 27. Nd3 {[%clk 0:00:22.2]} 27... Qb6 {[%clk
0:01:19.1]} 28. Qf2 {[%clk 0:00:21.3]} 28... Rc8 {[%clk 0:01:05.5]} 29. h4
{[%clk 0:00:18.4]} 29... Nb8 {[%clk 0:01:05.8]} 30. h5 {[%clk 0:00:16.9]} 30...
Nc6 {[%clk 0:01:06.2]} 31. Be3 {[%clk 0:00:15.6]} 31... Nxe3 {[%clk 0:01:05.8]}
32. Qxe3 {[%clk 0:00:15.3]} 32... Qxd4 {[%clk 0:01:05.4]} 33. Qxd4 {[%clk
0:00:14.7]} 33... Nxd4 {[%clk 0:01:06.3]} 34. Kf2 {[%clk 0:00:14.1]} 34... Nc2
{[%clk 0:00:54.5]} 35. Rd1 {[%clk 0:00:12.9]} 35... Nb4 {[%clk 0:00:52.2]} 36.
Nc1 {[%clk 0:00:09.6]} 36... Nc6 {[%clk 0:00:39.5]} 37. f4 {[%clk 0:00:09.3]}
37... Na5 {[%clk 0:00:37.8]} 38. Ke2 {[%clk 0:00:08.7]} 38... Bb4 {[%clk
0:00:37.4]} 39. Rd3 {[%clk 0:00:06]} 39... Nc4 {[%clk 0:00:36.6]} 40. Nxb3
{[%clk 0:00:02.3]} 40... Nxb2 {[%clk 0:00:36.8]} 41. Rd2 {[%clk 0:00:02.2]}
41... Bxc3 {[%clk 0:00:34]} 42. Rc2 {[%clk 0:00:02.3]} 42... Nxa4 {[%clk
0:00:34.6]} 0-1

[Event "*** SCC Grand Prix: Titled Tuesday Blitz"]
[Site "Chess.com"]
[Date "2020.06.02"]
[Round "6"]
[White "Shushik"]
[Black "Grieve72"]
[Result "0-1"]
[WhiteElo "2157"]
[BlackElo "2346"]
[TimeControl "180+1"]
[EndTime "11:09:10 PDT"]
[Termination "Grieve72 won by resignation"]

1. e4 {[%clk 0:03:00.9]} 1... c5 {[%clk 0:02:59.4]} 2. Nf3 {[%clk 0:03:00.9]}
2... e6 {[%clk 0:02:59.8]} 3. d4 {[%clk 0:03:00.9]} 3... cxd4 {[%clk 0:03:00.7]}
4. Nxd4 {[%clk 0:03:01.1]} 4... Nc6 {[%clk 0:03:01.3]} 5. Nc3 {[%clk 0:03:00.6]}
5... Qc7 {[%clk 0:03:00.8]} 6. Be3 {[%clk 0:02:55]} 6... a6 {[%clk 0:03:01]} 7.
Qd2 {[%clk 0:02:52.5]} 7... Nf6 {[%clk 0:02:59.9]} 8. f3 {[%clk 0:02:51.8]} 8...
Ne5 {[%clk 0:02:58.4]} 9. g4 {[%clk 0:02:28.3]} 9... h6 {[%clk 0:02:58.2]} 10.
O-O-O {[%clk 0:02:25.6]} 10... b5 {[%clk 0:02:58]} 11. Bf4 {[%clk 0:02:17.2]}
11... d6 {[%clk 0:02:35.2]} 12. h4 {[%clk 0:01:55.3]} 12... Bb7 {[%clk
0:02:26.6]} 13. Be2 {[%clk 0:01:49.5]} 13... Nfd7 {[%clk 0:02:24.7]} 14. g5
{[%clk 0:01:44.4]} 14... Nc5 {[%clk 0:02:00.9]} 15. Bxb5+ {[%clk 0:00:46.9]}
15... axb5 {[%clk 0:01:57.7]} 16. Ndxb5 {[%clk 0:00:47.1]} 16... Qb6 {[%clk
0:01:48.7]} 17. Bxe5 {[%clk 0:00:39.5]} 17... dxe5 {[%clk 0:01:42.6]} 18. b4
{[%clk 0:00:38.1]} 18... Bc6 {[%clk 0:01:03.2]} 19. bxc5 {[%clk 0:00:37.4]}
19... Bxc5 {[%clk 0:01:03.4]} 20. Nd6+ {[%clk 0:00:34.5]} 20... Ke7 {[%clk
0:01:03.8]} 21. Nc4 {[%clk 0:00:28]} 21... Qb4 {[%clk 0:00:40.1]} 22. Nd5+
{[%clk 0:00:19.2]} 22... exd5 {[%clk 0:00:34.5]} 23. Qxb4 {[%clk 0:00:19.4]}
23... Bxb4 {[%clk 0:00:34.1]} 24. exd5 {[%clk 0:00:19.7]} 24... Bb5 {[%clk
0:00:29.2]} 25. Nxe5 {[%clk 0:00:18.9]} 25... Bc3 {[%clk 0:00:27.1]} 26. Nc6+
{[%clk 0:00:18.1]} 26... Bxc6 {[%clk 0:00:26.8]} 27. dxc6 {[%clk 0:00:18.1]}
27... Rxa2 {[%clk 0:00:27.2]} 28. Rd7+ {[%clk 0:00:17.9]} 28... Ke6 {[%clk
0:00:26.1]} 29. Kd1 {[%clk 0:00:13.6]} 29... Ra1+ {[%clk 0:00:25.9]} 30. Ke2
{[%clk 0:00:13.9]} 30... Rxh1 {[%clk 0:00:26.8]} 31. Rd3 {[%clk 0:00:12.7]}
31... Ba5 {[%clk 0:00:23.1]} 32. Ra3 {[%clk 0:00:12.1]} 32... Bc7 {[%clk
0:00:22.5]} 33. Re3+ {[%clk 0:00:11.7]} 33... Kd6 {[%clk 0:00:22.8]} 34. Rd3+
{[%clk 0:00:11.9]} 34... Kxc6 {[%clk 0:00:22.9]} 35. Rc3+ {[%clk 0:00:12.3]}
35... Kd7 {[%clk 0:00:23.4]} 36. Rd3+ {[%clk 0:00:12.5]} 36... Bd6 {[%clk
0:00:23.9]} 0-1

[Event "*** SCC Grand Prix: Titled Tuesday Blitz"]
[Site "Chess.com"]
[Date "2020.06.02"]
[Round "6"]
[White "Shivagami"]
[Black "I_Hit_18K_on_BS"]
[Result "1-0"]
[WhiteElo "2256"]
[BlackElo "2080"]
[TimeControl "180+1"]
[EndTime "11:09:10 PDT"]
[Termination "Shivagami won on time"]

1. d4 {[%clk 0:03:00.9]} 1... Nf6 {[%clk 0:02:58.9]} 2. c4 {[%clk 0:02:58.2]}
2... g6 {[%clk 0:02:58.1]} 3. Nc3 {[%clk 0:02:58.1]} 3... d5 {[%clk 0:02:56.4]}
4. cxd5 {[%clk 0:02:56.5]} 4... Nxd5 {[%clk 0:02:57.3]} 5. Bd2 {[%clk
0:02:55.5]} 5... Bg7 {[%clk 0:02:56.2]} 6. e4 {[%clk 0:02:54.9]} 6... Nxc3
{[%clk 0:02:55.6]} 7. Bxc3 {[%clk 0:02:55.8]} 7... O-O {[%clk 0:02:52.2]} 8. Nf3
{[%clk 0:02:55.7]} 8... c5 {[%clk 0:02:49.3]} 9. d5 {[%clk 0:02:54.6]} 9... f6
{[%clk 0:02:42.2]} 10. Bc4 {[%clk 0:02:48.4]} 10... Kh8 {[%clk 0:02:36.4]} 11.
O-O {[%clk 0:02:48.3]} 11... a6 {[%clk 0:02:32]} 12. a4 {[%clk 0:02:47.1]} 12...
Nd7 {[%clk 0:02:21.2]} 13. Qe2 {[%clk 0:02:44.4]} 13... b6 {[%clk 0:01:48.5]}
14. e5 {[%clk 0:02:37.1]} 14... Nxe5 {[%clk 0:01:39.9]} 15. Nxe5 {[%clk
0:02:35.7]} 15... fxe5 {[%clk 0:01:40.8]} 16. Bxe5 {[%clk 0:02:36.2]} 16... Bb7
{[%clk 0:01:39.7]} 17. Bxg7+ {[%clk 0:02:28.4]} 17... Kxg7 {[%clk 0:01:38.6]}
18. Qe5+ {[%clk 0:02:26.5]} 18... Kh6 {[%clk 0:01:37.5]} 19. Ra3 {[%clk
0:02:20.1]} 19... Bc8 {[%clk 0:01:21.8]} 20. Re1 {[%clk 0:01:53.6]} 20... Bf5
{[%clk 0:01:05.3]} 21. Ree3 {[%clk 0:01:43.9]} 21... g5 {[%clk 0:00:48.8]} 22.
Rh3+ {[%clk 0:01:33.8]} 22... Kg6 {[%clk 0:00:46.9]} 23. g4 {[%clk 0:01:17.7]}
23... Bb1 {[%clk 0:00:28.9]} 24. Ra1 {[%clk 0:00:41.3]} 24... Bc2 {[%clk
0:00:09.7]} 25. Rc1 {[%clk 0:00:40.8]} 25... Qd7 {[%clk 0:00:05.2]} 26. f3
{[%clk 0:00:31]} 26... Rxf3 {[%clk 0:00:02.6]} 27. Rxf3 {[%clk 0:00:29.6]} 27...
Qxg4+ {[%clk 0:00:02.7]} 28. Rg3 {[%clk 0:00:29.8]} 28... Qxc4 {[%clk 0:00:03]}
29. Qxg5+ {[%clk 0:00:27.7]} 29... Kf7 {[%clk 0:00:02.3]} 30. Rf1+ {[%clk
0:00:22.2]} 30... Ke8 {[%clk 0:00:01.7]} 31. Qg8+ {[%clk 0:00:19.8]} 31... Kd7
{[%clk 0:00:02.1]} 32. Qe6+ {[%clk 0:00:19.7]} 32... Kc7 {[%clk 0:00:01.7]} 33.
Qxe7+ {[%clk 0:00:20.1]} 1-0

[Event "*** SCC Grand Prix: Titled Tuesday Blitz"]
[Site "Chess.com"]
[Date "2020.06.02"]
[Round "6"]
[White "Alexander_Donchenko"]
[Black "evgchess5"]
[Result "0-1"]
[WhiteElo "2695"]
[BlackElo "2858"]
[TimeControl "180+1"]
[EndTime "11:09:11 PDT"]
[Termination "evgchess5 won by resignation"]

1. Nf3 {[%clk 0:02:23.7]} 1... c5 {[%clk 0:02:59.3]} 2. g3 {[%clk 0:02:23.6]}
2... Nc6 {[%clk 0:02:59.3]} 3. Bg2 {[%clk 0:02:23.9]} 3... g6 {[%clk 0:02:59.9]}
4. c4 {[%clk 0:02:24]} 4... Bg7 {[%clk 0:02:59.8]} 5. Nc3 {[%clk 0:02:24.7]}
5... d6 {[%clk 0:02:59.6]} 6. O-O {[%clk 0:02:24.6]} 6... e6 {[%clk 0:02:59.6]}
7. e3 {[%clk 0:02:24.4]} 7... Nge7 {[%clk 0:02:59.8]} 8. d4 {[%clk 0:02:24.9]}
8... O-O {[%clk 0:02:59.8]} 9. Rb1 {[%clk 0:02:24.5]} 9... cxd4 {[%clk
0:02:53.6]} 10. exd4 {[%clk 0:02:24.3]} 10... d5 {[%clk 0:02:51.4]} 11. b3
{[%clk 0:02:24.6]} 11... Nf5 {[%clk 0:02:40.7]} 12. cxd5 {[%clk 0:02:21.1]}
12... exd5 {[%clk 0:02:40.4]} 13. Ne2 {[%clk 0:02:19.4]} 13... h6 {[%clk
0:02:31.3]} 14. Re1 {[%clk 0:02:17.6]} 14... Re8 {[%clk 0:02:30.3]} 15. Bb2
{[%clk 0:02:14.8]} 15... g5 {[%clk 0:02:14.3]} 16. Ne5 {[%clk 0:02:06.4]} 16...
Be6 {[%clk 0:02:07]} 17. Nxc6 {[%clk 0:02:03.6]} 17... bxc6 {[%clk 0:02:06.4]}
18. Rc1 {[%clk 0:02:03.8]} 18... Qd7 {[%clk 0:02:03.7]} 19. Qd2 {[%clk
0:02:01.1]} 19... Nd6 {[%clk 0:02:01.2]} 20. Nc3 {[%clk 0:02:00.5]} 20... Bh3
{[%clk 0:01:58.3]} 21. Bh1 {[%clk 0:01:59.3]} 21... Qf5 {[%clk 0:01:53.9]} 22.
Ba3 {[%clk 0:01:52.9]} 22... Qg6 {[%clk 0:01:43.7]} 23. Bc5 {[%clk 0:01:23.9]}
23... a6 {[%clk 0:01:37]} 24. Bg2 {[%clk 0:01:13]} 24... Bxg2 {[%clk 0:01:32.9]}
25. Kxg2 {[%clk 0:01:13.9]} 25... Ne4 {[%clk 0:01:24.3]} 26. Nxe4 {[%clk
0:01:12.4]} 26... dxe4 {[%clk 0:01:24]} 27. Qc2 {[%clk 0:00:52.7]} 27... f5
{[%clk 0:01:15.3]} 28. f3 {[%clk 0:00:52.1]} 28... exf3+ {[%clk 0:01:10.1]} 29.
Kxf3 {[%clk 0:00:53]} 29... Kh7 {[%clk 0:00:37.3]} 30. Kg2 {[%clk 0:00:52.6]}
30... h5 {[%clk 0:00:31.9]} 31. Qd3 {[%clk 0:00:51.1]} 31... Re6 {[%clk
0:00:25.6]} 32. Rxe6 {[%clk 0:00:46.6]} 32... Qxe6 {[%clk 0:00:25.1]} 33. Rf1
{[%clk 0:00:47.3]} 33... Kg6 {[%clk 0:00:25.1]} 34. h3 {[%clk 0:00:43.6]} 34...
g4 {[%clk 0:00:20.1]} 35. hxg4 {[%clk 0:00:34.9]} 35... hxg4 {[%clk 0:00:19.9]}
36. Qc4 {[%clk 0:00:35.5]} 36... Qe4+ {[%clk 0:00:18.9]} 0-1

[Event "*** SCC Grand Prix: Titled Tuesday Blitz"]
[Site "Chess.com"]
[Date "2020.06.02"]
[Round "6"]
[White "tamarozi99"]
[Black "Zmof"]
[Result "1-0"]
[WhiteElo "2036"]
[BlackElo "2221"]
[TimeControl "180+1"]
[EndTime "11:09:11 PDT"]
[Termination "tamarozi99 won by checkmate"]

1. e4 {[%clk 0:03:00.9]} 1... c5 {[%clk 0:02:56.8]} 2. Nf3 {[%clk 0:03:00.3]}
2... Nc6 {[%clk 0:02:56.5]} 3. Bb5 {[%clk 0:02:58.3]} 3... g6 {[%clk 0:02:55.8]}
4. Bxc6 {[%clk 0:02:56]} 4... bxc6 {[%clk 0:02:56.4]} 5. O-O {[%clk 0:02:53.1]}
5... Bg7 {[%clk 0:02:56.3]} 6. d3 {[%clk 0:02:48.3]} 6... d6 {[%clk 0:02:53.6]}
7. Nc3 {[%clk 0:02:40.8]} 7... e5 {[%clk 0:02:52.6]} 8. Ne2 {[%clk 0:02:35.8]}
8... Ne7 {[%clk 0:02:50.4]} 9. c3 {[%clk 0:02:35.9]} 9... O-O {[%clk 0:02:49.2]}
10. d4 {[%clk 0:02:36.2]} 10... cxd4 {[%clk 0:02:39.2]} 11. cxd4 {[%clk
0:02:37.1]} 11... exd4 {[%clk 0:02:39.6]} 12. Nfxd4 {[%clk 0:02:27.1]} 12... Ba6
{[%clk 0:02:28.4]} 13. Be3 {[%clk 0:02:17.6]} 13... c5 {[%clk 0:02:21.3]} 14.
Nf3 {[%clk 0:02:13.7]} 14... Bxb2 {[%clk 0:02:18.1]} 15. Rb1 {[%clk 0:02:09.7]}
15... Bg7 {[%clk 0:02:14.7]} 16. Qc2 {[%clk 0:02:04]} 16... Qc7 {[%clk
0:01:56.9]} 17. Rfd1 {[%clk 0:02:01]} 17... Bxe2 {[%clk 0:01:55.8]} 18. Qxe2
{[%clk 0:02:00.3]} 18... Rab8 {[%clk 0:01:53.4]} 19. Rbc1 {[%clk 0:01:58.6]}
19... Nc6 {[%clk 0:01:46.4]} 20. Qc4 {[%clk 0:01:50.6]} 20... Rb2 {[%clk
0:01:31.6]} 21. a3 {[%clk 0:01:36.5]} 21... Rfb8 {[%clk 0:01:29.5]} 22. g3
{[%clk 0:01:26.8]} 22... Ne5 {[%clk 0:01:10.2]} 23. Nxe5 {[%clk 0:01:20.1]}
23... Bxe5 {[%clk 0:01:10.8]} 24. Qd5 {[%clk 0:01:13.1]} 24... R2b6 {[%clk
0:00:58]} 25. f4 {[%clk 0:01:10.7]} 25... Bg7 {[%clk 0:00:56.2]} 26. e5 {[%clk
0:00:55.9]} 26... dxe5 {[%clk 0:00:55.6]} 27. Bxc5 {[%clk 0:00:54.7]} 27... Rc6
{[%clk 0:00:51.8]} 28. Bd6 {[%clk 0:00:51.6]} 28... Qxd6 {[%clk 0:00:26.5]} 29.
Qxc6 {[%clk 0:00:39.4]} 29... Qxa3 {[%clk 0:00:21.2]} 30. Qc3 {[%clk 0:00:24.9]}
30... Qe7 {[%clk 0:00:19]} 31. Qc7 {[%clk 0:00:22]} 31... Qa3 {[%clk 0:00:16.1]}
32. Qxb8+ {[%clk 0:00:20.5]} 32... Bf8 {[%clk 0:00:16.1]} 33. Qxe5 {[%clk
0:00:19.6]} 33... h5 {[%clk 0:00:13.6]} 34. Rc8 {[%clk 0:00:17.5]} 34... Qb3
{[%clk 0:00:07.3]} 35. Rxf8+ {[%clk 0:00:08.5]} 35... Kxf8 {[%clk 0:00:06.8]}
36. Rd8# {[%clk 0:00:08.1]} 1-0

[Event "*** SCC Grand Prix: Titled Tuesday Blitz"]
[Site "Chess.com"]
[Date "2020.06.02"]
[Round "6"]
[White "TokChess"]
[Black "topotun"]
[Result "1/2-1/2"]
[WhiteElo "2365"]
[BlackElo "2620"]
[TimeControl "180+1"]
[EndTime "11:09:12 PDT"]
[Termination "Game drawn by repetition"]

1. Nf3 {[%clk 0:03:00.9]} 1... c5 {[%clk 0:02:59.6]} 2. g3 {[%clk 0:03:00.9]}
2... Nc6 {[%clk 0:02:59.6]} 3. Bg2 {[%clk 0:03:00.9]} 3... g6 {[%clk 0:03:00.1]}
4. O-O {[%clk 0:03:01.1]} 4... Bg7 {[%clk 0:03:00.5]} 5. c4 {[%clk 0:03:01.7]}
5... d6 {[%clk 0:02:59.7]} 6. Nc3 {[%clk 0:03:01.5]} 6... Nf6 {[%clk 0:03:00]}
7. d3 {[%clk 0:02:57.6]} 7... Bd7 {[%clk 0:02:59.9]} 8. Bd2 {[%clk 0:02:57.5]}
8... Qc8 {[%clk 0:02:59.6]} 9. Re1 {[%clk 0:02:55]} 9... Bh3 {[%clk 0:02:59.2]}
10. Bh1 {[%clk 0:02:55.3]} 10... h5 {[%clk 0:02:59.3]} 11. e3 {[%clk 0:02:40.5]}
11... O-O {[%clk 0:02:24.4]} 12. Rb1 {[%clk 0:02:32.1]} 12... Bg4 {[%clk
0:02:13.3]} 13. Nd5 {[%clk 0:01:38.3]} 13... h4 {[%clk 0:02:00.1]} 14. Bc3
{[%clk 0:01:33.6]} 14... hxg3 {[%clk 0:01:51.4]} 15. hxg3 {[%clk 0:01:33.4]}
15... Nxd5 {[%clk 0:01:47.9]} 16. cxd5 {[%clk 0:01:30.3]} 16... Ne5 {[%clk
0:01:43.4]} 17. e4 {[%clk 0:01:13.4]} 17... b5 {[%clk 0:01:23.6]} 18. Bg2 {[%clk
0:01:07.8]} 18... a5 {[%clk 0:01:21]} 19. Bxe5 {[%clk 0:00:54.7]} 19... Bxe5
{[%clk 0:01:20.4]} 20. Qd2 {[%clk 0:00:54.9]} 20... Bxf3 {[%clk 0:01:14]} 21.
Bxf3 {[%clk 0:00:54.5]} 21... Kg7 {[%clk 0:01:14.4]} 22. Kg2 {[%clk 0:00:55]}
22... Rh8 {[%clk 0:01:09.7]} 23. Rh1 {[%clk 0:00:55]} 23... Qc7 {[%clk
0:01:04.2]} 24. Bg4 {[%clk 0:00:51.6]} 24... a4 {[%clk 0:00:58.6]} 25. Rxh8
{[%clk 0:00:48.5]} 25... Rxh8 {[%clk 0:00:57.8]} 26. Rh1 {[%clk 0:00:49]} 26...
Rxh1 {[%clk 0:00:57.7]} 27. Kxh1 {[%clk 0:00:49.1]} 27... Qb6 {[%clk 0:00:50.6]}
28. Bd1 {[%clk 0:00:44.9]} 28... c4 {[%clk 0:00:37.9]} 29. dxc4 {[%clk
0:00:39.2]} 29... bxc4 {[%clk 0:00:38.8]} 30. Bxa4 {[%clk 0:00:37.2]} 30... Bxb2
{[%clk 0:00:38.9]} 31. Kg2 {[%clk 0:00:36.2]} 31... Bf6 {[%clk 0:00:37.6]} 32.
Bc2 {[%clk 0:00:33.8]} 32... Qb2 {[%clk 0:00:34.2]} 33. a4 {[%clk 0:00:32.5]}
33... Bc3 {[%clk 0:00:33.8]} 34. Qe2 {[%clk 0:00:32.7]} 34... Qb4 {[%clk
0:00:31.5]} 35. Qd1 {[%clk 0:00:31.7]} 35... Be5 {[%clk 0:00:30.5]} 36. Qe2
{[%clk 0:00:31.4]} 36... Bd4 {[%clk 0:00:27.9]} 37. Qd1 {[%clk 0:00:31.6]} 37...
Qc5 {[%clk 0:00:26.8]} 38. Qe2 {[%clk 0:00:31.9]} 38... c3 {[%clk 0:00:23.8]}
39. Kf1 {[%clk 0:00:30.2]} 39... Qb4 {[%clk 0:00:22.7]} 40. Kg2 {[%clk
0:00:30.4]} 40... Bc5 {[%clk 0:00:22.2]} 41. Qd3 {[%clk 0:00:30.4]} 41... Kf8
{[%clk 0:00:20.5]} 42. Qe2 {[%clk 0:00:30.1]} 42... Qd4 {[%clk 0:00:20]} 43. Kf1
{[%clk 0:00:24.9]} 43... Bb6 {[%clk 0:00:19.7]} 44. Kg2 {[%clk 0:00:25]} 44...
Kg7 {[%clk 0:00:19.6]} 45. Kf1 {[%clk 0:00:25.1]} 45... Qc5 {[%clk 0:00:19.6]}
46. Kg2 {[%clk 0:00:25.4]} 46... Qd4 {[%clk 0:00:20]} 47. Kf1 {[%clk 0:00:25.7]}
47... Qc5 {[%clk 0:00:20.2]} 48. Kg2 {[%clk 0:00:26.2]} 48... Qd4 {[%clk
0:00:20.5]} 1/2-1/2

[Event "*** SCC Grand Prix: Titled Tuesday Blitz"]
[Site "Chess.com"]
[Date "2020.06.02"]
[Round "6"]
[White "JuliaEfremova"]
[Black "djano"]
[Result "1/2-1/2"]
[WhiteElo "2238"]
[BlackElo "2425"]
[TimeControl "180+1"]
[EndTime "11:09:12 PDT"]
[Termination "Game drawn by repetition"]

1. d4 {[%clk 0:03:00.9]} 1... Nf6 {[%clk 0:02:59.4]} 2. Bf4 {[%clk 0:03:01.2]}
2... Nh5 {[%clk 0:02:57.9]} 3. Bg5 {[%clk 0:02:58.2]} 3... h6 {[%clk 0:02:51.8]}
4. Bh4 {[%clk 0:02:57.8]} 4... g5 {[%clk 0:02:52]} 5. e3 {[%clk 0:02:54.7]} 5...
Nf6 {[%clk 0:02:49.1]} 6. Bg3 {[%clk 0:02:54.1]} 6... Bg7 {[%clk 0:02:46.5]} 7.
Bd3 {[%clk 0:02:53.2]} 7... b6 {[%clk 0:02:44.4]} 8. h4 {[%clk 0:02:38]} 8...
Bb7 {[%clk 0:02:36.9]} 9. hxg5 {[%clk 0:02:33.2]} 9... hxg5 {[%clk 0:02:37.8]}
10. Rxh8+ {[%clk 0:02:31.7]} 10... Bxh8 {[%clk 0:02:38.7]} 11. f3 {[%clk
0:02:25.8]} 11... d6 {[%clk 0:02:28]} 12. Nd2 {[%clk 0:02:24.4]} 12... Nbd7
{[%clk 0:02:27.5]} 13. Qe2 {[%clk 0:02:22]} 13... e5 {[%clk 0:02:26.2]} 14.
O-O-O {[%clk 0:02:20]} 14... Qe7 {[%clk 0:02:26.4]} 15. Nh3 {[%clk 0:02:11]}
15... Nh5 {[%clk 0:02:18.3]} 16. Bf2 {[%clk 0:02:07.4]} 16... Ng7 {[%clk
0:02:08.7]} 17. Rh1 {[%clk 0:02:04.2]} 17... O-O-O {[%clk 0:02:07]} 18. Ne4
{[%clk 0:01:48]} 18... exd4 {[%clk 0:02:00.8]} 19. Nexg5 {[%clk 0:01:41.6]}
19... dxe3 {[%clk 0:01:53.7]} 20. Qxe3 {[%clk 0:01:40.4]} 20... Qf6 {[%clk
0:01:37.9]} 21. c3 {[%clk 0:01:24.6]} 21... Ne5 {[%clk 0:01:23.4]} 22. Bc2
{[%clk 0:01:20.6]} 22... Ne6 {[%clk 0:01:19.2]} 23. Ne4 {[%clk 0:01:16.8]} 23...
Qg7 {[%clk 0:01:17.6]} 24. g4 {[%clk 0:00:58.2]} 24... d5 {[%clk 0:01:14.9]} 25.
Nd2 {[%clk 0:00:57.4]} 25... d4 {[%clk 0:01:14.4]} 26. cxd4 {[%clk 0:00:55.9]}
26... Nxd4 {[%clk 0:01:15.3]} 27. Be4 {[%clk 0:00:53.9]} 27... Nec6 {[%clk
0:01:10.1]} 28. Nc4 {[%clk 0:00:45.9]} 28... b5 {[%clk 0:01:01.9]} 29. Nd2
{[%clk 0:00:26.1]} 29... Nxf3 {[%clk 0:00:59]} 30. Bxf3 {[%clk 0:00:24.7]} 30...
Qxb2+ {[%clk 0:00:58.2]} 31. Kd1 {[%clk 0:00:24.9]} 31... Nd4 {[%clk 0:00:33]}
32. Bxb7+ {[%clk 0:00:23.8]} 32... Kxb7 {[%clk 0:00:29.7]} 33. Qe4+ {[%clk
0:00:23.5]} 33... Kb8 {[%clk 0:00:29.4]} 34. Bxd4 {[%clk 0:00:23.5]} 34... Rxd4
{[%clk 0:00:27.1]} 35. Qe8+ {[%clk 0:00:22.7]} 35... Kb7 {[%clk 0:00:27.5]} 36.
Rh2 {[%clk 0:00:21.5]} 36... Qb1+ {[%clk 0:00:21.8]} 37. Ke2 {[%clk 0:00:20.4]}
37... Qd3+ {[%clk 0:00:22.5]} 38. Kd1 {[%clk 0:00:20.1]} 38... Qb1+ {[%clk
0:00:17.2]} 39. Ke2 {[%clk 0:00:20.1]} 39... Qd3+ {[%clk 0:00:16.2]} 40. Kd1
{[%clk 0:00:19.2]} 40... Qb1+ {[%clk 0:00:11.1]} 1/2-1/2

[Event "*** SCC Grand Prix: Titled Tuesday Blitz"]
[Site "Chess.com"]
[Date "2020.06.02"]
[Round "6"]
[White "queen_iryna"]
[Black "isainz"]
[Result "1-0"]
[WhiteElo "2267"]
[BlackElo "2133"]
[TimeControl "180+1"]
[EndTime "11:09:13 PDT"]
[Termination "queen_iryna won on time"]

1. d4 {[%clk 0:03:00.9]} 1... e6 {[%clk 0:02:56.3]} 2. e4 {[%clk 0:03:00.2]}
2... d5 {[%clk 0:02:42.1]} 3. Nc3 {[%clk 0:02:59.9]} 3... Bb4 {[%clk 0:02:41.6]}
4. e5 {[%clk 0:02:59.5]} 4... c5 {[%clk 0:02:41.7]} 5. a3 {[%clk 0:02:58.8]}
5... Bxc3+ {[%clk 0:02:41.9]} 6. bxc3 {[%clk 0:02:58.8]} 6... Qa5 {[%clk
0:02:42]} 7. Bd2 {[%clk 0:02:52.3]} 7... Qa4 {[%clk 0:02:41.7]} 8. Qg4 {[%clk
0:02:45]} 8... g6 {[%clk 0:02:40.7]} 9. Nf3 {[%clk 0:02:34]} 9... Qxc2 {[%clk
0:02:24.2]} 10. Bb5+ {[%clk 0:02:26.6]} 10... Bd7 {[%clk 0:02:21.1]} 11. a4
{[%clk 0:01:54.1]} 11... Bxb5 {[%clk 0:02:05.9]} 12. axb5 {[%clk 0:01:52.7]}
12... Qd3 {[%clk 0:02:05.6]} 13. b6 {[%clk 0:01:45]} 13... Nc6 {[%clk 0:01:59]}
14. dxc5 {[%clk 0:01:22.9]} 14... Nge7 {[%clk 0:01:57.2]} 15. bxa7 {[%clk
0:00:32.6]} 15... Rxa7 {[%clk 0:01:41.5]} 16. Rxa7 {[%clk 0:00:30.6]} 16... Nxa7
{[%clk 0:01:41.4]} 17. Qg5 {[%clk 0:00:20.6]} 17... Qe4+ {[%clk 0:00:57.5]} 18.
Qe3 {[%clk 0:00:20.2]} 18... Qxe3+ {[%clk 0:00:55.6]} 19. Bxe3 {[%clk
0:00:20.4]} 19... Nac6 {[%clk 0:00:54.9]} 20. Ke2 {[%clk 0:00:20.7]} 20... Kd7
{[%clk 0:00:50.7]} 21. Rb1 {[%clk 0:00:20.5]} 21... Kc7 {[%clk 0:00:49.9]} 22.
Ra1 {[%clk 0:00:20.5]} 22... h6 {[%clk 0:00:42.5]} 23. Bd4 {[%clk 0:00:20.5]}
23... g5 {[%clk 0:00:39.7]} 24. h3 {[%clk 0:00:20.1]} 24... Nf5 {[%clk
0:00:36.7]} 25. Kd3 {[%clk 0:00:18.3]} 25... Rg8 {[%clk 0:00:27.6]} 26. Ra4
{[%clk 0:00:17.3]} 26... g4 {[%clk 0:00:23.2]} 27. hxg4 {[%clk 0:00:17.3]} 27...
Rxg4 {[%clk 0:00:23.3]} 28. g3 {[%clk 0:00:17.3]} 28... Nfxd4 {[%clk 0:00:19.7]}
29. cxd4 {[%clk 0:00:16.5]} 29... h5 {[%clk 0:00:13.4]} 30. Ra8 {[%clk
0:00:15.7]} 30... Rg7 {[%clk 0:00:11.9]} 31. Rh8 {[%clk 0:00:15.3]} 31... b6
{[%clk 0:00:05.7]} 32. cxb6+ {[%clk 0:00:15]} 32... Kxb6 {[%clk 0:00:05.8]} 33.
Rxh5 {[%clk 0:00:15.7]} 33... Rg4 {[%clk 0:00:05]} 34. Rg5 {[%clk 0:00:15.5]}
34... Rxg5 {[%clk 0:00:03.3]} 35. Nxg5 {[%clk 0:00:16.4]} 35... Nd8 {[%clk
0:00:01.9]} 36. f4 {[%clk 0:00:16]} 36... Kc6 {[%clk 0:00:01.8]} 37. g4 {[%clk
0:00:16.1]} 37... Kd7 {[%clk 0:00:01.9]} 38. f5 {[%clk 0:00:15.7]} 1-0